Cogmind - Beta 15 --- EXPLORER MODE // 2025.07.08 @ 20:17:39 Player: Beosis Result: Destroyed by D-53 Grenadier with Mini Grenade Launcher Performance ------------- Evolutions (0) 0 Regions Visited (2) 400 Robots Destroyed (8) 40 Value Destroyed (135) 135 Prototype IDs (0) 0 Alien Tech Used (0) 0 Bonus (0) 0 TOTAL SCORE: 575 Bonus ------- None Cogmind --------- Core Integrity 0/250 Matter 300/300 Energy 100/100 System Corruption 0% Temperature Cool (0) Movement Core (200) Ox3 Location -10/Mines Parts ------- > --- POWER (1) -------- (None) > --- PROPULSION (3) --- (None) > --- UTILITY (2) ------ Medium Storage Unit > --- WEAPON (2) ------- (None) > --- INVENTORY (10) --- Improved Terrain Scan Processor Targeting Computer Utility Shielding Hardened Light Armor Plating System Shield Peak State ------------ > --- POWER ------------ Ion Engine > --- PROPULSION ------- Aluminum Leg Aluminum Leg Aluminum Leg > --- UTILITY ---------- Medium Storage Unit Targeting Computer > --- WEAPON ----------- Heavy EM Pulse Gun Small Laser > --- INVENTORY -------- Improved Terrain Scan Processor Targeting Computer Utility Shielding Hardened Light Armor Plating System Shield Assault Rifle [Rating: 10] Favorites ----------- Power Ion Engine Engine Ion Engine Propulsion Aluminum Leg Leg Aluminum Leg Utility Medium Storage Unit Storage Medium Storage Unit Processor Targeting Computer Weapon Small Laser Energy Gun Small Laser Ballistic Gun Assault Rifle Build | -11 -10 -10 ------- Run | Yrd Mat Min Slots Evolved 1 | . 1 . Power . | . . . Propulsion 1 | . 1 . Utility . | . . . Weapon . | . . . Parts Attached 10 | 7 2 1 Power 1 | 1 . . Engine 1 | 1 . . Core . | . . . Reactor . | . . . Propulsion 4 | 2 1 1 Treads . | . . . Leg 4 | 2 1 1 Wheel . | . . . Hover . | . . . Flight . | . . . Utility 2 | 2 . . Device . | . . . Storage 1 | 1 . . Processor 1 | 1 . . Hackware . | . . . Protection . | . . . Artifact . | . . . Weapon 3 | 2 1 . Energy Gun 2 | 1 1 . Energy Cannon . | . . . Ballistic Gun 1 | 1 . . Ballistic Cannon . | . . . Launcher . | . . . Special Weapon . | . . . Impact Weapon . | . . . Slashing Weapon . | . . . Piercing Weapon . | . . . Special Melee Weapon . | . . . Unidentified Prototypes . | . . . Parts Lost 9 | . . 9 Power 1 | . . 1 Propulsion 4 | . . 4 Utility 1 | . . 1 Weapon 3 | . . 3 Highest Loss Streak 9 | . . 9 To Critical Strikes . | . . . Average Backups 3 | . 2 6 Power . | . . . Propulsion . | . . . Utility 3 | . 2 4 Weapon . | . . . Tool/Special . | . . . Unused Backups 5 | . . 5 Power . | . . . Propulsion . | . . . Utility 5 | . . 5 Weapon . | . . . Tool/Special . | . . . Average Slot Usage (%) 96 | . 99 93 Engine 11 | . 12 10 Leg 35 | . 36 33 Storage 12 | . 12 12 Processor 11 | . 12 11 Energy Gun 20 | . 18 22 Ballistic Gun 3 | . 6 1 Peak Build Rating 10 | 7 9 10 Average Rating 8 | 5 8 9 On Entrance 5 | . 7 9 Naked Turns . | . . . Heaviest Build 19 | 18 19 19 Greatest Support 30 | 20 30 30 Greatest Overweight (x) 3 | . . 3 Average Overweight (x) . | . . . Largest Inventory Capacity 10 | 10 10 10 Average Capacity 9 | 8 10 10 Most Carried 9 | 5 4 9 Average Carried 4 | 1 2 6 Final Capacity 10 | 10 10 10 Final Carried 5 | 1 4 5 Class Distribution -------------------- 100% | Hacker-Mutant Dominant Class ---------------- Hacker-Mutant | -10/Materials Hacker-Mutant | -10/Mines Resources | -11 -10 -10 ----------- Run | Yrd Mat Min Matter Collected 318 | 164 148 6 Remotely . | . . . Salvage Created 323 | . 323 . Parts 9 | . 9 . Haulers Intercepted . | . . . Recyclers Shooed 2 | . 2 . Parts Field Recycled . | . . . Retrieved Matter . | . . . Parts Self-Destructed . | . . . Prevented . | . . . Kills | -11 -10 -10 ------- Run | Yrd Mat Min Combat Hostiles Destroyed 4 | . 4 . Guns 4 | . 4 . Classes Destroyed 4 | . 4 . Recycler 3 | . 3 . Watcher 1 | . 1 . Swarmer 2 | . 2 . Grunt 2 | . 2 . Best Kill Streak 4 | . 4 . Combat Bots Only 2 | . 2 . Max Kills in Single Turn 1 | . 1 . Gunslinging . | . . . Exploded . | . . . Melee . | . . . Uniques/NPCs Destroyed . | . . . Combat | -11 -10 -10 -------- Run | Yrd Mat Min Hostile Shots Fired 55 | . 23 32 Missed 6 | . 5 1 Hits 49 | . 18 31 Projectile 49 | . 18 31 AOE 32 | . . 32 Damage Taken 974 | . 142 832 Core 256 | . 20 236 Absorbed by Shields . | . . . Ignored by Resistances 571 | . 89 482 Core Remaining (%) 100 | 100 . . Volleys Fired 24 | . 20 4 Largest 2 | . 2 2 Hottest 85 | . 60 85 Shots Fired 45 | . 40 5 Gun 45 | . 40 5 Cannon . | . . . Launcher . | . . . Special . | . . . Kinetic 21 | . 20 1 Thermal 21 | . 20 1 Explosive . | . . . Electromagnetic 3 | . . 3 Robot Hit Streak 30 | . 30 3 Robot Miss Streak 1 | . 1 1 Penetration Max . | . . . Secondary Targets 1 | . 1 . Max Gunslinging Chain 1 | . 1 . Shots Hit Robots 38 | . 35 3 Core Hits 16 | . 15 1 Critical Kills . | . . . Critical Parts Destroyed . | . . . Critical Strikes 1 | . . 1 Corrupt 1 | . . 1 Melee Attacks . | . . . Impact . | . . . Slashing . | . . . Piercing . | . . . Sneak Attacks . | . . . Combat Hostiles . | . . . Follow-up Attacks . | . . . Damage Inflicted 467 | . 430 37 Guns 446 | . 409 37 Cannons . | . . . Explosions . | . . . Melee . | . . . Ramming 21 | . 21 . Kinetic 188 | . 188 . Thermal 233 | . 221 12 Explosive . | . . . Electromagnetic 25 | . . 25 Impact . | . . . Slashing . | . . . Piercing . | . . . Highest Corruption . | . . . Average Corruption . | . . . Corruption Purged . | . . . Corruption Blocked . | . . . Overload Shots . | . . . Overflow Damage . | . . . Projectiles . | . . . Explosions . | . . . Melee . | . . . Knockbacks . | . . . Impact . | . . . Kinetic . | . . . Secondary . | . . . Self-Inflicted Damage . | . . . Shots . | . . . Rammed . | . . . Targets Rammed 7 | . 7 . Kicked 7 | . 7 . Crushed . | . . . Highest Temperature 66 | . 66 24 Average Temperature 35 | . 40 12 Received Heat Transfer 123 | . 123 . Siege Activations . | . . . Martial Activations . | . . . Shielding Activations . | . . . Robots Disrupted . | . . . Combat Hostiles . | . . . Robots Corrupted . | . . . Combat Hostiles . | . . . Parts Fried . | . . . Impact Corruptions . | . . . Robots Melted . | . . . Combat Hostiles . | . . . Parts Melted . | . . . Heat Transferred 525 | . 500 25 Parts Sabotaged . | . . . Parts Stolen . | . . . Parts Stripped . | . . . Power Chain Reactions . | . . . Alert | -11 -10 -10 ------- Run | Yrd Mat Min Maximum Alert Level . | . . . Low Security (%) 100 | 100 100 100 Level 1 . | . . . Level 2 . | . . . Level 3 . | . . . Level 4 . | . . . Level 5 . | . . . High Security . | . . . Max Security . | . . . Peak Influence 50 | . 50 . Initial . | . . . Average 4 | . 10 . Influence Increases 128 | . 128 . Destroy 0b10 Robot/C 80 | . 80 . Destroy 0b10 Robot/NC 20 | . 20 . Destroy Leader 22 | . 22 . Successful Hack 5 | . 5 . Destroy Structure 1 | . 1 . Influence Decreases 128 | . 128 . Time Decay 128 | . 128 . Squads Dispatched 1 | . . 1 Investigation 1 | . . 1 Extermination . | . . . Reinforcement . | . . . Assault . | . . . Garrison . | . . . Intercept . | . . . Searches Triggered . | . . . Construction Impeded . | . . . Haulers Reinforced . | . . . Active Scanning Responses . | . . . Cargo Convoy Interrupts . | . . . Stealth | -11 -10 -10 --------- Run | Yrd Mat Min Distress Signals . | . . . Communications Jammed . | . . . Distress Signals . | . . . Times Spotted 7 | . 5 2 Peak Tracking Total 2 | . 2 2 Tactical Retreats . | . . . Traps | -11 -10 -10 ------- Run | Yrd Mat Min Traps Triggered 1 | . 1 . Indirectly . | . . . Trap Hack Attempts . | . . . Triggered . | . . . Disarmed . | . . . Reprogrammed . | . . . Reused . | . . . Traps Extracted . | . . . Installed . | . . . Triggered . | . . . Most Traps Carried 2 | . . 2 Machines | -11 -10 -10 ---------- Run | Yrd Mat Min Machines Disabled . | . . . Max in Single Turn . | . . . Machines Repaired . | . . . Machines Dismantled . | . . . Machines Sabotaged . | . . . Overloaded Fab Kills . | . . . Hacking | -11 -10 -10 --------- Run | Yrd Mat Min Machines Accessed 2 | . 1 1 Terminals 1 | . 1 . Fabricators . | . . . Repair Stations . | . . . Recycling Units . | . . . Scanalyzers . | . . . Garrison Access . | . . . Total Hacks 3 | . 2 1 Successful 3 | . 2 1 Failed . | . . . Catastrophic . | . . . Database Lockouts . | . . . Manual . | . . . Terminals 2 | . 2 . Fabricators . | . . . Repair Stations . | . . . Recycling Units . | . . . Scanalyzers . | . . . Garrison Access . | . . . Terminal Hacks 3 | . 2 1 Open Door 1 | . . 1 Alert Level 1 | . 1 . Security Status 1 | . 1 . Fabricator Hacks . | . . . Repair Station Hacks . | . . . Recycling Unit Hacks . | . . . Scanalyzer . | . . . Garrison Access Hacks . | . . . Unauthorized Hacks . | . . . Terminals . | . . . Fabricators . | . . . Repair Stations . | . . . Recycling Units . | . . . Scanalyzers . | . . . Garrison Access . | . . . Data Cores Recovered . | . . . Used . | . . . Hacking Detections . | . . . Full Trace Events . | . . . Feedback Events . | . . . Feedback Blocked . | . . . Robot Schematics Acquired . | . . . Robots Built . | . . . Authchips . | . . . Time . | . . . Total Robot Build Rating . | . . . Part Schematics Acquired . | . . . Parts Built . | . . . Authchips . | . . . Time . | . . . Total Part Build Rating . | . . . Parts Repaired . | . . . Time . | . . . Parts Recycled . | . . . Recycled Matter . | . . . Retrieved Matter . | . . . Retrieved Components . | . . . Parts Scanalyzed . | . . . Part Schematics Acquired . | . . . Parts Damaged . | . . . Bothacking | -11 -10 -10 ------------ Run | Yrd Mat Min Used RIF Installer . | . . . Robots Hacked . | . . . Non-combat . | . . . Combat . | . . . Robot Hacks Applied . | . . . Relay Couplers Released . | . . . Fabnet Peak Effective % . | . . . Robots Rewired . | . . . Allies Hacked . | . . . Hacks Repelled . | . . . Allies | -11 -10 -10 -------- Run | Yrd Mat Min Total Allies . | . . . Largest Group . | . . . Highest-Rated Group . | . . . Highest-Rated Ally . | . . . Total Orders . | . . . Ally Attacks . | . . . Total Damage . | . . . Kills . | . . . Allies Corrupted . | . . . Allies Melted . | . . . Intel | -11 -10 -10 ------- Run | Yrd Mat Min Active Infowar (turns) . | . . . Robot Analysis Total . | . . . Derelict Logs Recovered 2 | . . 2 Drone Launches . | . . . Drone Recoveries . | . . . Exploration | -11 -10 -10 ------------- Run | Yrd Mat Min Turns Passed 845 | 95 408 342 Spaces Moved 589 | 69 265 255 Core 14 | 3 . 11 Treads . | . . . Legs 575 | 66 265 244 Wheels . | . . . Hover . | . . . Flight . | . . . Fastest Speed 50 | 50 120 120 Average Speed 121 | 116 120 124 Slowest Speed 200 | 120 120 200 Overloaded Moves . | . . . Propulsion Burnouts . | . . . Robots Hopped . | . . . Potential Cave-ins . | . . . Cave-ins Triggered . | . . . Exploration Rate (%) 36 | 4 52 54 Regions Visited 2 Branch Regions 1 Pre-discovered Areas 1 | . . 1 Known Exits Taken 2 | 1 1 . Unknown Exits Taken . | . . . Scrap Searched . | . . . Spaces Dug . | . . . Terrain Destroyed . | . . . Melee . | . . . Projectile . | . . . AOE . | . . . Terrain Rammed . | . . . Walls Destroyed . | . . . Machines Disabled . | . . . Actions | -11 -10 -10 --------- Run | Yrd Mat Min Total 674 | 83 313 278 Wait 22 | . 16 6 Move 587 | 68 264 255 Hop . | . . . Pick Up 19 | 8 4 7 Fast Attach . | . . . Attach 10 | 7 1 2 Detach . | . . . Swap 1 | . 1 . Drop 4 | . . 4 Fire 24 | . 20 4 Melee . | . . . Ram . | . . . Kick 7 | . 7 . Crush . | . . . Escape Stasis . | . . . Rewire . | . . . Trap . | . . . Miscellaneous . | . . . Route ------- -11/Scrapyard -10/Materials (discovered 2 exits: *Mat / *Min) -10/Mines History --------- Turn | Location | Event 7 | -11/Scrapyard | Identified exit to Materials 7 | -11/Scrapyard | Discovered exit to Materials (range 16) 96 | -11/Scrapyard | Entered Materials 96 | -10/Materials | Evolved 1 slot: Propulsion x1 314 | -10/Materials | Build established: Hacker-Mutant 341 | -10/Materials | Identified exit to Mines 341 | -10/Materials | Discovered exit to Mines (range 12) 405 | -10/Materials | Identified exit to Materials 405 | -10/Materials | Discovered exit to Materials (range 16) 504 | -10/Materials | Entered Mines 524 | -10/Mines | Found a hidden stash of uninstalled traps 556 | -10/Mines | Met a Derelict shopkeep closing up shop 759 | -10/Mines | Assembled infested the area 783 | -10/Mines | Learned 2 Materials zone layouts 789 | -10/Mines | Learned location of Zion (-6) 827 | -10/Mines | Core integrity fell below 50% 833 | -10/Mines | Core integrity fell below 20% 846 | -10/Mines | Destroyed by D-53 Grenadier with Mini Grenade Launcher Last Messages --------------- World map updated: -6/Zion. The unstable cave ceiling collapses. R-06 Scavenger destroyed. Sml. Laser destroyed. Aluminum Leg destroyed. Hvy. EM Pulse Gun destroyed. Aluminum Leg destroyed. The unstable cave ceiling collapses. Aluminum Leg destroyed. The unstable cave ceiling collapses. Ion Engine destroyed. K-01 Serf collects debris. Carbon-fiber Leg destroyed. The unstable cave ceiling collapses. Assault Rifle destroyed. Targeting Computer destroyed. The unstable cave ceiling collapses. K-01 Serf destroyed. The unstable cave ceiling collapses. K-01 Serf collects debris. Map ----- +----------------------------------------------------+ | | | | | | | | | | | | | | | ?????????????????????????????????????????????????? | | ?????????????????????????????????????????????????? | | ?????????????????????????????????????????????????? | | ?????????????????????????????????????????????????? | | ?????????????????????????????????????????????????? | | ?????????????????????????????????????????????????? | | ?????????????????????????????????????????????????? | | ????????????????????###??????????????????????????? | | ???????????????????## #?????????????????????????? | | ???????????????????# k #????????????????????????? | | ???????????????????# #????????????????????????? | | ???????????????????? #????????????????????????? | | ????????????????????# ##???????????????????????? | | ????????????????????# #???????????????????????? | | ????????????????????# #???????????????????????? | | ?????????????????????# #???????????????????????? | | ??????????????????????# ##??????????????????????? | | ????????????????????### ##?????????????????????? | | ????????????????????# @ ##????????????????????? | | ?????????????????#### #????????????????????? | | ?????????####??### #????????????????????? | | ????????## ### ##????????????????????? | | ????????# # #?????????????????????? | | ????????# #?????????????????????? | | ????????# = #?????????????????????? | | ????????## d ##?????????????????????? | | ?????????## ####??????????????????????? | | ?????????# d # #####?????????????????????? | | ?????????## # ##????????????????????? | | ?????????# # ! ##???????????????????? | | ?????????# ### ????????????????? | | ????????# # #???????????????? | | ????????# ## #?????????????### | | ???????# ??# #???????????####### | | ??????# ???# # ####??????????## | | ????## ???## # ##???????????### | | ????# ???# #????????##### | | ????## ????## # ##????????# ### | | ?????## ????# #?????????# ##?## | | ??????? ###?# #?????????#&&## ##???# # | | ???????? #?# #????????# %#####????# # | | ????????# #?# # #????????# #????????# # | | ????????# ## # ## #????????# #????????# | +----------------------------------------------------+ Best States ------------- Heat Dissipation 25 Energy Generation 10 Energy Capacity 250 Matter Stores 300 Matter Capacity 300 Sight Range 16 Terrain Scan Density 10 Resistance: KI 35 Resistance: TH 35 Resistance: EX 35 Resistance: EM 35 Resistance: I 35 Resistance: S 35 Resistance: P 35 Evasion (%) 55 Targeting Accuracy 5 Offensive Hacking 20 Item Schematics ----------------- None Robot Schematics ------------------ None Fabricated ------------ Nothing Repaired ---------- Nothing Alien Tech Used ----------------- None Achievements -------------- None Challenges ------------ None Game ------ Seed ThiefImpactLoader Manual? 0 Play Time 00:15:30 Cumulative 21.5 hours Start 2025.07.07 @ 21:07:04 End 2025.07.08 @ 20:17:39 Sessions 3 Manual Loads 0 Difficulty Explorer Special Mode None Game No. 25 Rogue 16 Adventurer 1 Explorer 8 Win Type - Total 0 Types 0/0/0/0/0/0/0/0/0/0 Lore% 12 Gallery% 20 Achievement% 21 Wizard Run 0 Options --------- Layout 1 ASCII 0 Keyboard 0 Movement Numpad Keybinds 0 Fullscreen 1 Font 24/Smallcaps Map View 50x35 Zoom Use 0% Tactical HUD 0 Map Filters NONE Filters NONE Steam 1 RUN: d417b80c-9d8d-460f-8a08-f8f55506d727